[Event "Titled Tuesday Blitz March 01 Late 2022"]
[White "Tomiello, Mateus Costamilan"]
[Black "Kaplan, Ebru"]
[WhiteFideId "22701958"]
[BlackFideId "6315194"]
[WhiteElo "1975"]
[BlackElo "1941"]
[Result "1-0"]
[Round "01"]
[TimeControl "180+1"]
[Date "2022.03.02"]
[WhiteClock "0:02:41"]
[BlackClock "0:02:39"]

1. e4 {[%clk 0:03:00]}  c5 {[%clk 0:02:59]} 2. Nf3 {[%clk 0:02:59]}  d6 {[%clk 0:03:00]} 3. d4 {[%clk 0:02:59]}  cxd4 {[%clk 0:03:00]} 4. Nxd4 {[%clk 0:03:00]}  Nf6 {[%clk 0:03:01]} 5. Nc3 {[%clk 0:02:59]}  a6 {[%clk 0:03:01]} 6. Be2 {[%clk 0:02:59]}  e6 {[%clk 0:03:00]} 7. O-O {[%clk 0:02:58]}  Be7 {[%clk 0:03:00]} 8. f4 {[%clk 0:02:56]}  b5 {[%clk 0:02:48]} 9. e5 {[%clk 0:02:48]}  dxe5 {[%clk 0:02:42]} 10. fxe5 {[%clk 0:02:47]}  Nd5 {[%clk 0:02:42]} 11. Nxd5 {[%clk 0:02:43]}  Qxd5 {[%clk 0:02:39]} 12. Bf3 {[%clk 0:02:41]} 1-0


[Site "https://www.chess.com"]

[Event "Titled Tuesday Blitz March 01 Late 2022"]
[White "Urbina Perez, Juan Antonio"]
[Black "Salinas Herrera, Pablo"]
[WhiteFideId "2217368"]
[BlackFideId "3407128"]
[WhiteElo "2192"]
[BlackElo "2541"]
[Result "0-1"]
[Round "01"]
[TimeControl "180+1"]
[Date "2022.03.01"]
[WhiteClock "0:00:15"]
[BlackClock "0:00:56"]

1. e4 {[%clk 0:02:59]}  c5 {[%clk 0:02:59]} 2. Nf3 {[%clk 0:02:57]}  e6 {[%clk 0:02:59]} 3. c3 {[%clk 0:02:55]}  d5 {[%clk 0:02:58]} 4. exd5 {[%clk 0:02:55]}  exd5 {[%clk 0:02:59]} 5. d4 {[%clk 0:02:55]}  Nc6 {[%clk 0:02:59]} 6. Bb5 {[%clk 0:02:55]}  Bd6 {[%clk 0:03:00]} 7. dxc5 {[%clk 0:02:54]}  Bxc5 {[%clk 0:02:59]} 8. O-O {[%clk 0:02:54]}  Ne7 {[%clk 0:03:00]} 9. Bf4 {[%clk 0:02:52]}  O-O {[%clk 0:03:00]} 10. Nbd2 {[%clk 0:02:50]}  a6 {[%clk 0:02:57]} 11. Bd3 {[%clk 0:02:48]}  Bf5 {[%clk 0:02:46]} 12. Nb3 {[%clk 0:02:43]}  Bb6 {[%clk 0:02:44]} 13. Re1 {[%clk 0:02:40]}  Qd7 {[%clk 0:02:37]} 14. Ne5 {[%clk 0:02:23]}  Nxe5 {[%clk 0:02:35]} 15. Bxe5 {[%clk 0:02:24]}  Ng6 {[%clk 0:02:33]} 16. Bd4 {[%clk 0:02:13]}  Bc7 {[%clk 0:02:22]} 17. Nc5 {[%clk 0:01:47]}  Qd6 {[%clk 0:02:22]} 18. g3 {[%clk 0:01:22]}  Bc8 {[%clk 0:02:22]} 19. Qd2 {[%clk 0:01:13]}  b6 {[%clk 0:02:14]} 20. Nb3 {[%clk 0:01:13]}  a5 {[%clk 0:02:13]} 21. a4 {[%clk 0:01:11]}  Bh3 {[%clk 0:02:06]} 22. Bf1 {[%clk 0:01:09]}  Nh4 {[%clk 0:01:56]} 23. Qd3 {[%clk 0:00:56]}  Bf5 {[%clk 0:01:51]} 24. Qd1 {[%clk 0:00:52]}  Be4 {[%clk 0:01:49]} 25. Nd2 {[%clk 0:00:51]}  Rfe8 {[%clk 0:01:44]} 26. Nxe4 {[%clk 0:00:49]}  dxe4 {[%clk 0:01:44]} 27. Bg2 {[%clk 0:00:49]}  Nxg2 {[%clk 0:01:40]} 28. Kxg2 {[%clk 0:00:50]}  Qe6 {[%clk 0:01:28]} 29. Qe2 {[%clk 0:00:44]}  Rad8 {[%clk 0:01:25]} 30. Rad1 {[%clk 0:00:43]}  Qb3 {[%clk 0:01:18]} 31. Qb5 {[%clk 0:00:44]}  Qxb5 {[%clk 0:01:18]} 32. axb5 {[%clk 0:00:45]}  f5 {[%clk 0:01:19]} 33. Be3 {[%clk 0:00:41]}  Kf7 {[%clk 0:01:16]} 34. Kf1 {[%clk 0:00:40]}  h6 {[%clk 0:01:12]} 35. h4 {[%clk 0:00:40]}  Kg6 {[%clk 0:01:11]} 36. Ke2 {[%clk 0:00:40]}  Kh5 {[%clk 0:01:12]} 37. Rxd8 {[%clk 0:00:39]}  Rxd8 {[%clk 0:01:12]} 38. f4 {[%clk 0:00:27]}  Kg4 {[%clk 0:01:05]} 39. Kf2 {[%clk 0:00:22]}  Rd3 {[%clk 0:01:04]} 40. Re2 {[%clk 0:00:21]}  g5 {[%clk 0:00:57]} 41. hxg5 {[%clk 0:00:20]}  hxg5 {[%clk 0:00:57]} 42. fxg5 {[%clk 0:00:20]}  Bxg3+ {[%clk 0:00:58]} 43. Kg2 {[%clk 0:00:20]}  f4 {[%clk 0:00:57]} 44. Bxf4 {[%clk 0:00:19]}  Bxf4 {[%clk 0:00:57]} 45. g6 {[%clk 0:00:20]}  Kf5 {[%clk 0:00:55]} 46. g7 {[%clk 0:00:16]}  Rg3+ {[%clk 0:00:56]} 47. Kf1 {[%clk 0:00:15]}  Rxg7 {[%clk 0:00:56]} 0-1


[Site "https://www.chess.com"]

[Event "Titled Tuesday Blitz March 01 Late 2022"]
[White "Villegas, Pierre"]
[Black "Tari, Aryan"]
[WhiteFideId "654183"]
[BlackFideId "1510045"]
[WhiteElo "2410"]
[BlackElo "2567"]
[Result "0-1"]
[Round "01"]
[TimeControl "180+1"]
[Date "2022.03.01"]
[WhiteClock "0:00:03"]
[BlackClock "0:00:17"]

1. d4 {[%clk 0:02:58]}  d5 {[%clk 0:02:55]} 2. Nf3 {[%clk 0:02:54]}  Nf6 {[%clk 0:02:55]} 3. c3 {[%clk 0:02:52]}  Bf5 {[%clk 0:02:52]} 4. Qb3 {[%clk 0:02:51]}  Qc8 {[%clk 0:02:53]} 5. c4 {[%clk 0:02:51]}  dxc4 {[%clk 0:02:54]} 6. Qxc4 {[%clk 0:02:52]}  e6 {[%clk 0:02:45]} 7. Nc3 {[%clk 0:02:47]}  Be7 {[%clk 0:02:23]} 8. g3 {[%clk 0:02:44]}  O-O {[%clk 0:02:20]} 9. Bg2 {[%clk 0:02:44]}  c5 {[%clk 0:02:20]} 10. O-O {[%clk 0:02:31]}  Nbd7 {[%clk 0:02:20]} 11. dxc5 {[%clk 0:02:16]}  Bxc5 {[%clk 0:02:18]} 12. Qh4 {[%clk 0:02:16]}  h6 {[%clk 0:02:15]} 13. e4 {[%clk 0:02:11]}  Bg6 {[%clk 0:02:11]} 14. e5 {[%clk 0:02:09]}  Nd5 {[%clk 0:01:50]} 15. Nxd5 {[%clk 0:01:56]}  exd5 {[%clk 0:01:50]} 16. Bf4 {[%clk 0:01:52]}  Re8 {[%clk 0:01:47]} 17. Rac1 {[%clk 0:01:51]}  Qd8 {[%clk 0:01:45]} 18. Qg4 {[%clk 0:01:41]}  Bf8 {[%clk 0:01:38]} 19. Rfe1 {[%clk 0:01:39]}  Nc5 {[%clk 0:01:38]} 20. Rcd1 {[%clk 0:01:28]}  Nd3 {[%clk 0:01:38]} 21. Re2 {[%clk 0:01:27]}  Qc8 {[%clk 0:01:13]} 22. Qxc8 {[%clk 0:00:56]}  Raxc8 {[%clk 0:01:14]} 23. Nh4 {[%clk 0:00:56]}  Nxf4 {[%clk 0:01:04]} 24. gxf4 {[%clk 0:00:57]}  Bh5 {[%clk 0:00:59]} 25. Bf3 {[%clk 0:00:52]}  Bxf3 {[%clk 0:00:59]} 26. Nxf3 {[%clk 0:00:53]}  Rc4 {[%clk 0:00:59]} 27. Rd4 {[%clk 0:00:40]}  Bc5 {[%clk 0:00:59]} 28. Rxc4 {[%clk 0:00:40]}  dxc4 {[%clk 0:01:00]} 29. Rc2 {[%clk 0:00:38]}  b5 {[%clk 0:00:58]} 30. b3 {[%clk 0:00:37]}  cxb3 {[%clk 0:00:45]} 31. axb3 {[%clk 0:00:33]}  Bb6 {[%clk 0:00:44]} 32. f5 {[%clk 0:00:25]}  Rd8 {[%clk 0:00:40]} 33. Kg2 {[%clk 0:00:23]}  Kf8 {[%clk 0:00:39]} 34. Kg3 {[%clk 0:00:16]}  Rd3 {[%clk 0:00:39]} 35. Rc8+ {[%clk 0:00:13]}  Ke7 {[%clk 0:00:39]} 36. Rb8 {[%clk 0:00:14]}  Rxb3 {[%clk 0:00:23]} 37. Rb7+ {[%clk 0:00:14]}  Ke8 {[%clk 0:00:23]} 38. Rb8+ {[%clk 0:00:03]}  Kd7 {[%clk 0:00:24]} 39. Rb7+ {[%clk 0:00:04]}  Bc7 {[%clk 0:00:22]} 40. Kf4 {[%clk 0:00:04]}  Rb4+ {[%clk 0:00:20]} 41. Ke3 {[%clk 0:00:03]}  Kc8 {[%clk 0:00:16]} 42. Rxa7 {[%clk 0:00:03]}  Bb6+ {[%clk 0:00:17]} 0-1


[Site "https://www.chess.com"]

[Event "Titled Tuesday Blitz March 01 Late 2022"]
[White "Vine, Elzbieta"]
[Black "Christie, Joshua"]
[WhiteFideId "1119320"]
[BlackFideId "7402074"]
[WhiteElo "1862"]
[BlackElo "2078"]
[Result "0-1"]
[Round "01"]
[TimeControl "180+1"]
[Date "2022.03.02"]
[WhiteClock "0:00:13"]
[BlackClock "0:00:31"]

1. e4 {[%clk 0:02:35]}  c6 {[%clk 0:02:47]} 2. d4 {[%clk 0:02:33]}  d5 {[%clk 0:02:47]} 3. exd5 {[%clk 0:02:31]}  cxd5 {[%clk 0:02:48]} 4. Bd3 {[%clk 0:02:29]}  Nc6 {[%clk 0:02:47]} 5. c3 {[%clk 0:02:23]}  Nf6 {[%clk 0:02:47]} 6. h3 {[%clk 0:02:22]}  e6 {[%clk 0:02:47]} 7. Nf3 {[%clk 0:02:21]}  Bd6 {[%clk 0:02:48]} 8. O-O {[%clk 0:02:20]}  O-O {[%clk 0:02:48]} 9. Bg5 {[%clk 0:02:13]}  b6 {[%clk 0:02:42]} 10. Re1 {[%clk 0:02:12]}  Bb7 {[%clk 0:02:41]} 11. Nbd2 {[%clk 0:02:07]}  Qc7 {[%clk 0:02:24]} 12. Bxf6 {[%clk 0:02:01]}  gxf6 {[%clk 0:02:24]} 13. Ng5 {[%clk 0:01:45]}  fxg5 {[%clk 0:02:05]} 14. Bxh7+ {[%clk 0:01:44]}  Kg7 {[%clk 0:01:58]} 15. Qh5 {[%clk 0:01:41]}  Qe7 {[%clk 0:01:45]} 16. Nf3 {[%clk 0:01:37]}  Rh8 {[%clk 0:01:09]} 17. Nxg5 {[%clk 0:01:34]}  Bf4 {[%clk 0:01:10]} 18. Nxe6+ {[%clk 0:01:22]}  fxe6 {[%clk 0:01:04]} 19. Qg6+ {[%clk 0:01:10]}  Kf8 {[%clk 0:01:04]} 20. Rxe6 {[%clk 0:01:05]}  Qxh7 {[%clk 0:00:32]} 21. Rf6+ {[%clk 0:00:25]}  Ke7 {[%clk 0:00:33]} 22. Re1+ {[%clk 0:00:23]}  Kd8 {[%clk 0:00:32]} 23. Rxf4 {[%clk 0:00:19]}  Qxg6 {[%clk 0:00:31]} 24. Rf3 {[%clk 0:00:13]}  Re8 {[%clk 0:00:31]} 0-1


[Site "https://www.chess.com"]

[Event "Titled Tuesday Blitz March 01 Late 2022"]
[White "Abdrlauf, Elham"]
[Black "Artemenko, Oleg"]
[WhiteFideId "1533533"]
[BlackFideId "14201798"]
[WhiteElo "2334"]
[BlackElo "2287"]
[Result "1-0"]
[Round "02"]
[TimeControl "180+1"]
[Date "2022.03.01"]
[WhiteClock "0:00:05"]
[BlackClock "0:00:04"]

1. e4 {[%clk 0:02:57]}  e6 {[%clk 0:03:00]} 2. d4 {[%clk 0:02:57]}  d5 {[%clk 0:03:00]} 3. Nc3 {[%clk 0:02:56]}  Nf6 {[%clk 0:03:00]} 4. Bg5 {[%clk 0:02:56]}  Bb4 {[%clk 0:03:00]} 5. e5 {[%clk 0:02:56]}  h6 {[%clk 0:03:00]} 6. Bd2 {[%clk 0:02:56]}  Bxc3 {[%clk 0:03:00]} 7. bxc3 {[%clk 0:02:57]}  Ne4 {[%clk 0:03:01]} 8. Bc1 {[%clk 0:02:57]}  c5 {[%clk 0:02:57]} 9. Ne2 {[%clk 0:02:57]}  Qa5 {[%clk 0:02:57]} 10. f3 {[%clk 0:02:49]}  Ng5 {[%clk 0:02:38]} 11. h4 {[%clk 0:02:47]}  Nh7 {[%clk 0:02:37]} 12. Bd2 {[%clk 0:02:44]}  Nc6 {[%clk 0:02:35]} 13. Kf2 {[%clk 0:02:31]}  Nf8 {[%clk 0:02:30]} 14. g4 {[%clk 0:02:29]}  Nd7 {[%clk 0:02:28]} 15. Be3 {[%clk 0:02:28]}  b6 {[%clk 0:02:23]} 16. Qe1 {[%clk 0:02:15]}  Ba6 {[%clk 0:02:20]} 17. Rd1 {[%clk 0:02:13]}  O-O-O {[%clk 0:02:17]} 18. Bh3 {[%clk 0:02:05]}  Bc4 {[%clk 0:02:13]} 19. g5 {[%clk 0:01:58]}  h5 {[%clk 0:02:11]} 20. g6 {[%clk 0:01:56]}  Rdf8 {[%clk 0:01:57]} 21. gxf7 {[%clk 0:01:52]}  Bxe2 {[%clk 0:01:56]} 22. Kxe2 {[%clk 0:01:42]}  Nd8 {[%clk 0:01:56]} 23. Bg5 {[%clk 0:01:31]}  Qb5+ {[%clk 0:01:27]} 24. Kf2 {[%clk 0:01:30]}  Qc6 {[%clk 0:01:28]} 25. c4 {[%clk 0:01:18]}  Rxf7 {[%clk 0:01:24]} 26. cxd5 {[%clk 0:01:13]}  Qxd5 {[%clk 0:01:23]} 27. Qe3 {[%clk 0:01:04]}  Rhf8 {[%clk 0:01:22]} 28. Bg2 {[%clk 0:00:58]}  Qxa2 {[%clk 0:01:09]} 29. d5 {[%clk 0:00:45]}  exd5 {[%clk 0:01:00]} 30. e6 {[%clk 0:00:46]}  d4 {[%clk 0:01:00]} 31. Qb3 {[%clk 0:00:35]}  Qxb3 {[%clk 0:00:55]} 32. exd7+ {[%clk 0:00:35]}  Kxd7 {[%clk 0:00:56]} 33. cxb3 {[%clk 0:00:36]}  Nc6 {[%clk 0:00:53]} 34. f4 {[%clk 0:00:32]}  Nd8 {[%clk 0:00:47]} 35. Rhe1 {[%clk 0:00:32]}  Kd6 {[%clk 0:00:43]} 36. Bh3 {[%clk 0:00:19]}  a5 {[%clk 0:00:40]} 37. Kg3 {[%clk 0:00:19]}  Kc6 {[%clk 0:00:38]} 38. f5 {[%clk 0:00:18]}  Kb5 {[%clk 0:00:37]} 39. Be7 {[%clk 0:00:15]}  Re8 {[%clk 0:00:33]} 40. f6 {[%clk 0:00:16]}  Nc6 {[%clk 0:00:25]} 41. Bd7 {[%clk 0:00:12]}  Rg8 {[%clk 0:00:25]} 42. Re6 {[%clk 0:00:10]}  gxf6+ {[%clk 0:00:24]} 43. Kh2 {[%clk 0:00:10]}  Kb4 {[%clk 0:00:13]} 44. Bxc6 {[%clk 0:00:08]}  Rg4 {[%clk 0:00:12]} 45. Bxf6 {[%clk 0:00:06]}  Kc3 {[%clk 0:00:10]} 46. Rf1 {[%clk 0:00:05]}  Kxb3 {[%clk 0:00:08]} 47. Bd5+ {[%clk 0:00:05]}  Ka4 {[%clk 0:00:06]} 48. Ree1 {[%clk 0:00:02]}  Rf8 {[%clk 0:00:05]} 49. Ra1+ {[%clk 0:00:03]}  Kb5 {[%clk 0:00:05]} 50. Rfb1+ {[%clk 0:00:03]}  Ka6 {[%clk 0:00:05]} 51. Bg5 {[%clk 0:00:02]}  Rf2+ {[%clk 0:00:05]} 52. Kh3 {[%clk 0:00:03]}  Rc2 {[%clk 0:00:04]} 53. Rf1 {[%clk 0:00:03]}  Rc3+ {[%clk 0:00:04]} 54. Kh2 {[%clk 0:00:03]}  Rc2+ {[%clk 0:00:03]} 55. Kh3 {[%clk 0:00:03]}  Rc3+ {[%clk 0:00:04]} 56. Rf3 {[%clk 0:00:03]}  d3 {[%clk 0:00:04]} 57. Rd1 {[%clk 0:00:03]}  Rd4 {[%clk 0:00:05]} 58. Bf6 {[%clk 0:00:03]}  Rxd5 {[%clk 0:00:03]} 59. Bxc3 {[%clk 0:00:04]}  c4 {[%clk 0:00:04]} 60. Rf4 {[%clk 0:00:04]}  b5 {[%clk 0:00:04]} 61. Rf6+ {[%clk 0:00:04]}  Kb7 {[%clk 0:00:04]} 62. Bxa5 {[%clk 0:00:04]}  Re5 {[%clk 0:00:05]} 63. Rg1 {[%clk 0:00:04]}  Re3+ {[%clk 0:00:05]} 64. Rg3 {[%clk 0:00:05]}  Re2 {[%clk 0:00:04]} 65. Rg7+ {[%clk 0:00:05]} 1-0


[Site "https://www.chess.com"]

[Event "Titled Tuesday Blitz March 01 Late 2022"]
[White "Abdyzhapar, Asylbek"]
[Black "Golubovskis, Maksims"]
[WhiteFideId "13800337"]
[BlackFideId "11608528"]
[WhiteElo "2331"]
[BlackElo "2066"]
[Result "1-0"]
[Round "02"]
[TimeControl "180+1"]
[Date "2022.03.02"]
[WhiteClock "0:00:22"]
[BlackClock "0:00:03"]

1. e4 {[%clk 0:02:57]}  c5 {[%clk 0:03:00]} 2. Nf3 {[%clk 0:02:57]}  e6 {[%clk 0:03:00]} 3. d4 {[%clk 0:02:56]}  cxd4 {[%clk 0:03:01]} 4. Nxd4 {[%clk 0:02:57]}  Nf6 {[%clk 0:03:01]} 5. Nc3 {[%clk 0:02:57]}  Nc6 {[%clk 0:03:01]} 6. Be3 {[%clk 0:02:57]}  a6 {[%clk 0:02:57]} 7. f3 {[%clk 0:02:56]}  Bb4 {[%clk 0:02:54]} 8. Qd2 {[%clk 0:02:48]}  d5 {[%clk 0:02:53]} 9. a3 {[%clk 0:02:48]}  Ba5 {[%clk 0:02:37]} 10. Nb3 {[%clk 0:02:31]}  Bxc3 {[%clk 0:02:36]} 11. Qxc3 {[%clk 0:02:30]}  dxe4 {[%clk 0:02:37]} 12. Rd1 {[%clk 0:02:28]}  Qc7 {[%clk 0:02:35]} 13. fxe4 {[%clk 0:02:24]}  Qe5 {[%clk 0:02:32]} 14. Qxe5 {[%clk 0:02:06]}  Nxe5 {[%clk 0:02:32]} 15. Bd4 {[%clk 0:01:56]}  Nc6 {[%clk 0:02:25]} 16. e5 {[%clk 0:01:56]}  Ng4 {[%clk 0:02:19]} 17. Be2 {[%clk 0:01:55]}  Ngxe5 {[%clk 0:02:19]} 18. Bc3 {[%clk 0:01:55]}  O-O {[%clk 0:02:17]} 19. O-O {[%clk 0:01:55]}  Ng6 {[%clk 0:02:08]} 20. Nc5 {[%clk 0:01:54]}  e5 {[%clk 0:02:07]} 21. Bf3 {[%clk 0:01:50]}  Nh4 {[%clk 0:01:46]} 22. Bd5 {[%clk 0:01:48]}  Bg4 {[%clk 0:01:43]} 23. Rde1 {[%clk 0:01:43]}  Rad8 {[%clk 0:01:28]} 24. Be4 {[%clk 0:01:40]}  Nd4 {[%clk 0:01:19]} 25. Nxb7 {[%clk 0:01:37]}  Rb8 {[%clk 0:01:01]} 26. Rf2 {[%clk 0:01:25]}  f6 {[%clk 0:00:55]} 27. Nc5 {[%clk 0:01:17]}  Rb6 {[%clk 0:00:46]} 28. h3 {[%clk 0:01:16]}  Bc8 {[%clk 0:00:44]} 29. Bd5+ {[%clk 0:01:10]}  Kh8 {[%clk 0:00:44]} 30. b4 {[%clk 0:01:09]}  Nhf5 {[%clk 0:00:39]} 31. g4 {[%clk 0:01:08]}  Ne7 {[%clk 0:00:39]} 32. Bg2 {[%clk 0:01:04]}  Ng6 {[%clk 0:00:34]} 33. Bb2 {[%clk 0:00:58]}  a5 {[%clk 0:00:28]} 34. c3 {[%clk 0:00:58]}  Nc6 {[%clk 0:00:22]} 35. Be4 {[%clk 0:00:54]}  Nf4 {[%clk 0:00:22]} 36. Kh2 {[%clk 0:00:53]}  g6 {[%clk 0:00:19]} 37. Kg3 {[%clk 0:00:49]}  Kg7 {[%clk 0:00:19]} 38. Bxc6 {[%clk 0:00:42]}  Rxc6 {[%clk 0:00:19]} 39. c4 {[%clk 0:00:43]}  axb4 {[%clk 0:00:18]} 40. axb4 {[%clk 0:00:43]}  Rb6 {[%clk 0:00:17]} 41. b5 {[%clk 0:00:36]}  Rd8 {[%clk 0:00:17]} 42. Rxe5 {[%clk 0:00:33]}  fxe5 {[%clk 0:00:11]} 43. Bxe5+ {[%clk 0:00:32]}  Kg8 {[%clk 0:00:08]} 44. Rxf4 {[%clk 0:00:32]}  Re8 {[%clk 0:00:06]} 45. Bd4 {[%clk 0:00:31]}  Rb8 {[%clk 0:00:04]} 46. Ne4 {[%clk 0:00:29]}  Rxe4 {[%clk 0:00:01]} 47. Rxe4 {[%clk 0:00:29]}  Kf7 {[%clk 0:00:02]} 48. Rf4+ {[%clk 0:00:28]}  Ke8 {[%clk 0:00:02]} 49. Bc5 {[%clk 0:00:27]}  Rb7 {[%clk 0:00:01]} 50. Rf8+ {[%clk 0:00:26]}  Kd7 {[%clk 0:00:02]} 51. Rf7+ {[%clk 0:00:26]}  Ke6 {[%clk 0:00:03]} 52. Rf4 {[%clk 0:00:26]}  Ke5 {[%clk 0:00:02]} 53. Bd4+ {[%clk 0:00:25]}  Ke6 {[%clk 0:00:03]} 54. b6 {[%clk 0:00:24]}  Bd7 {[%clk 0:00:03]} 55. Rf6+ {[%clk 0:00:22]}  Ke7 {[%clk 0:00:03]} 56. c5 {[%clk 0:00:22]} 1-0


[Site "https://www.chess.com"]

[Event "Titled Tuesday Blitz March 01 Late 2022"]
[White "Al-Tarboush, Ward"]
[Black "Beerdsen, Thomas"]
[WhiteFideId "7601450"]
[BlackFideId "1030108"]
[WhiteElo "2276"]
[BlackElo "2585"]
[Result "0-1"]
[Round "02"]
[TimeControl "180+1"]
[Date "2022.03.02"]
[WhiteClock "0:00:01"]
[BlackClock "0:00:25"]

1. e4 {[%clk 0:02:39]}  e5 {[%clk 0:02:59]} 2. Nf3 {[%clk 0:02:39]}  Nc6 {[%clk 0:03:00]} 3. Bb5 {[%clk 0:02:39]}  f5 {[%clk 0:03:00]} 4. Nc3 {[%clk 0:02:39]}  fxe4 {[%clk 0:03:00]} 5. Nxe4 {[%clk 0:02:40]}  Nf6 {[%clk 0:03:01]} 6. Nxf6+ {[%clk 0:02:39]}  Qxf6 {[%clk 0:03:02]} 7. Qe2 {[%clk 0:02:37]}  Be7 {[%clk 0:03:02]} 8. Bxc6 {[%clk 0:02:37]}  dxc6 {[%clk 0:03:03]} 9. Qxe5 {[%clk 0:02:38]}  O-O {[%clk 0:03:02]} 10. Qxf6 {[%clk 0:02:37]}  Bxf6 {[%clk 0:03:03]} 11. O-O {[%clk 0:02:32]}  Bg4 {[%clk 0:03:03]} 12. d3 {[%clk 0:02:29]}  b6 {[%clk 0:02:50]} 13. Rb1 {[%clk 0:02:20]}  Bxf3 {[%clk 0:02:48]} 14. gxf3 {[%clk 0:02:20]}  Rae8 {[%clk 0:02:43]} 15. Be3 {[%clk 0:02:19]}  Be5 {[%clk 0:02:41]} 16. Kg2 {[%clk 0:02:18]}  Re6 {[%clk 0:02:40]} 17. f4 {[%clk 0:02:07]}  Rg6+ {[%clk 0:02:32]} 18. Kh1 {[%clk 0:02:00]}  Bxf4 {[%clk 0:02:31]} 19. Bxf4 {[%clk 0:02:01]}  Rxf4 {[%clk 0:02:32]} 20. Rbe1 {[%clk 0:02:02]}  Kf7 {[%clk 0:02:19]} 21. Re3 {[%clk 0:01:57]}  Rgf6 {[%clk 0:02:13]} 22. Kg2 {[%clk 0:01:56]}  g5 {[%clk 0:02:10]} 23. h3 {[%clk 0:01:51]}  h5 {[%clk 0:02:09]} 24. Re5 {[%clk 0:01:49]}  Kg6 {[%clk 0:02:08]} 25. Re7 {[%clk 0:01:48]}  Rf7 {[%clk 0:02:06]} 26. Rxf7 {[%clk 0:01:48]}  Kxf7 {[%clk 0:02:01]} 27. Re1 {[%clk 0:01:49]}  Ra4 {[%clk 0:01:56]} 28. a3 {[%clk 0:01:48]}  c5 {[%clk 0:01:49]} 29. Re4 {[%clk 0:01:48]}  Ra5 {[%clk 0:01:24]} 30. Re5 {[%clk 0:01:48]}  Kf6 {[%clk 0:01:20]} 31. Rd5 {[%clk 0:01:48]}  Rb5 {[%clk 0:01:14]} 32. b3 {[%clk 0:01:46]}  a5 {[%clk 0:01:13]} 33. Rd7 {[%clk 0:01:32]}  a4 {[%clk 0:01:12]} 34. bxa4 {[%clk 0:01:32]}  Ra5 {[%clk 0:01:06]} 35. Rxc7 {[%clk 0:01:32]}  Rxa4 {[%clk 0:01:06]} 36. Rc6+ {[%clk 0:01:31]}  Ke5 {[%clk 0:01:05]} 37. Rxb6 {[%clk 0:01:32]}  Rxa3 {[%clk 0:01:05]} 38. Rg6 {[%clk 0:01:28]}  Kf5 {[%clk 0:01:05]} 39. Rc6 {[%clk 0:01:28]}  Rc3 {[%clk 0:01:06]} 40. Kf3 {[%clk 0:01:19]}  Rxc2 {[%clk 0:01:06]} 41. Ke3 {[%clk 0:01:19]}  h4 {[%clk 0:00:59]} 42. Rc8 {[%clk 0:01:18]}  Kf6 {[%clk 0:00:53]} 43. Rf8+ {[%clk 0:01:16]}  Kg7 {[%clk 0:00:53]} 44. Rf5 {[%clk 0:01:06]}  Kg6 {[%clk 0:00:53]} 45. Rf8 {[%clk 0:01:06]}  Rc1 {[%clk 0:00:50]} 46. f3 {[%clk 0:00:59]}  Rh1 {[%clk 0:00:49]} 47. Rc8 {[%clk 0:00:54]}  Rxh3 {[%clk 0:00:49]} 48. Rc6+ {[%clk 0:00:47]}  Kh7 {[%clk 0:00:47]} 49. Ke4 {[%clk 0:00:41]}  Rh1 {[%clk 0:00:32]} 50. Kf5 {[%clk 0:00:30]}  h3 {[%clk 0:00:32]} 51. Rc7+ {[%clk 0:00:17]}  Kg8 {[%clk 0:00:29]} 52. Kg6 {[%clk 0:00:15]}  Kf8 {[%clk 0:00:29]} 53. Kf6 {[%clk 0:00:15]}  Ke8 {[%clk 0:00:28]} 54. Rh7 {[%clk 0:00:13]}  h2 {[%clk 0:00:24]} 55. Kf5 {[%clk 0:00:12]}  g4 {[%clk 0:00:24]} 56. f4 {[%clk 0:00:01]}  g3 {[%clk 0:00:24]} 57. Ke6 {[%clk 0:00:01]}  Re1+ {[%clk 0:00:25]} 58. Kd6 {[%clk 0:00:01]}  h1=Q {[%clk 0:00:25]} 0-1


[Site "https://www.chess.com"]